Cogmind - Beta 13 @@@ ROGUE MODE // 2024.04.01 @ 22:38:53 Player: CrazyNinja Result: Destroyed by G-47 Trooper with Particle Gun Performance ------------- Evolutions (1) 500 Regions Visited (2) 400 Robots Destroyed (12) 60 Value Destroyed (368) 368 Prototype IDs (0) 0 Alien Tech Used (0) 0 Bonus (0) 0 TOTAL SCORE: 1328 Bonus ------- None Cogmind --------- Core Integrity 0/400 Matter 156/300 Energy 70/100 System Corruption 0% Temperature Cool (21) Movement Core (700) Ox13 Location -9/Materials Parts ------- > --- POWER (2) -------- (None) > --- PROPULSION (2) --- (None) > --- UTILITY (3) ------ High-capacity Storage Unit > --- WEAPON (2) ------- (None) > --- INVENTORY (20) --- Ion Engine Light Ion Engine Light Ion Engine Compact Wheel Improved Heat Sink Large Battery (200) Medium Matter Pod (21) Peak State ------------ > --- POWER ------------ Light Ion Engine Light Nuclear Core > --- PROPULSION ------- Aluminum Leg Aluminum Leg > --- UTILITY ---------- Heat Sink High-capacity Storage Unit Visual Processing Unit > --- WEAPON ----------- Small Laser Assault Rifle > --- INVENTORY -------- Ion Engine Ion Engine Light Ion Engine Light Ion Engine Aluminum Leg Wheel Wheel Compact Wheel Improved Heat Sink Large Battery Medium Matter Pod Medium Laser Assault Rifle Assault Rifle Datajack Datajack Datajack [Rating: 13] Favorites ----------- Power Light Ion Engine Engine Light Ion Engine Power Core Light Nuclear Core Propulsion Aluminum Leg Leg Aluminum Leg Wheel Wheel Utility High-capacity Storage Unit Device Heat Sink Storage High-capacity Storage Unit Processor Visual Processing Unit Weapon Assault Rifle Energy Gun Small Laser Ballistic Gun Assault Rifle Special Melee Weapon Datajack Build | -11 -10 -9 ------- Run | Yrd Mat Mat Slots Evolved 2 | . . 2 Power 1 | . . 1 Propulsion . | . . . Utility 1 | . . 1 Weapon . | . . . Parts Attached 26 | 6 5 15 Power 6 | 1 2 3 Engine 5 | 1 1 3 Core 1 | . 1 . Reactor . | . . . Propulsion 6 | 2 1 3 Treads . | . . . Leg 4 | 2 1 1 Wheel 2 | . . 2 Hover . | . . . Flight . | . . . Utility 3 | 1 1 1 Device 1 | 1 . . Storage 1 | . 1 . Processor 1 | . . 1 Hackware . | . . . Protection . | . . . Artifact . | . . . Weapon 11 | 2 1 8 Energy Gun 3 | 1 1 1 Energy Cannon . | . . . Ballistic Gun 5 | 1 . 4 Ballistic Cannon . | . . . Launcher . | . . . Special Weapon . | . . . Impact Weapon . | . . . Slashing Weapon . | . . . Piercing Weapon . | . . . Special Melee Weapon 3 | . . 3 Unidentified Prototypes . | . . . Parts Lost 17 | . 2 15 Power 3 | . . 3 Propulsion 5 | . 1 4 Utility 1 | . . 1 Weapon 8 | . 1 7 Highest Loss Streak 12 | . 1 12 To Critical Strikes . | . . . Average Slot Usage (%) 94 | . 98 76 Engine 6 | . 6 8 Core 6 | . 7 4 Leg 25 | . 28 15 Device 12 | . 14 5 Storage 13 | . 13 11 Processor 2 | . . 11 Energy Gun 12 | . 13 8 Ballistic Gun 12 | . 14 9 Naked Turns . | . . . Heaviest Build 52 | 8 49 52 Greatest Support 20 | 20 20 20 Greatest Overweight (x) 13 | . 2 13 Average Overweight (x) 1 | . 1 2 Largest Inventory Capacity 20 | 5 20 20 Average Capacity 18 | 5 19 20 Most Carried 19 | 5 19 18 Average Carried 10 | 2 10 15 Final Capacity 20 | 5 20 20 Final Carried 19 | 4 19 7 Class Distribution -------------------- 100% | Mutant Dominant Class ---------------- Mutant | -10/Materials Mutant | -9/Materials Resources | -11 -10 -9 ----------- Run | Yrd Mat Mat Matter Collected 447 | 269 178 . Remotely . | . . . Salvage Created 512 | 42 370 100 Parts 27 | 3 17 7 Haulers Intercepted . | . . . Recyclers Shooed . | . . . Parts Field Recycled . | . . . Retrieved Matter . | . . . Parts Self-Destructed . | . . . Prevented . | . . . Kills | -11 -10 -9 ------- Run | Yrd Mat Mat Combat Hostiles Destroyed 9 | 1 6 2 Guns 9 | 1 6 2 Classes Destroyed 4 | 1 2 1 Recycler 1 | . 1 . Watcher 2 | . 2 . Grunt 8 | 1 6 1 Sentry 1 | . . 1 Best Kill Streak 5 | 1 5 2 Combat Bots Only 3 | 1 3 2 Max Kills in Single Turn 1 | 1 1 1 Gunslinging . | . . . Exploded . | . . . Melee . | . . . Uniques/NPCs Destroyed . | . . . Combat | -11 -10 -9 -------- Run | Yrd Mat Mat Hostile Shots Fired 154 | 4 49 101 Missed 46 | 3 10 33 Damage Taken 1704 | 11 470 1223 Core 516 | . 116 400 Absorbed by Shields . | . . . Core Remaining (%) 76 | 100 53 . Volleys Fired 68 | 3 39 26 Largest 2 | 2 2 2 Hottest 70 | 60 60 70 Shots Fired 115 | 6 65 44 Gun 115 | 6 65 44 Cannon . | . . . Launcher . | . . . Special . | . . . Kinetic 65 | 3 39 23 Thermal 36 | . 15 21 Explosive . | . . . Electromagnetic 14 | 3 11 . Robot Hit Streak 8 | 3 7 8 Robot Miss Streak 4 | 2 4 3 Penetration Max . | . . . Secondary Targets 3 | . 2 1 Max Gunslinging Chain 1 | . 1 1 Shots Hit Robots 70 | 4 42 24 Core Hits 26 | 2 17 7 Critical Kills . | . . . Critical Parts Destroyed . | . . . Critical Strikes 1 | . . 1 Burn 1 | . . 1 Melee Attacks 3 | . . 3 Impact . | . . . Slashing . | . . . Piercing . | . . . Sneak Attacks . | . . . Combat Hostiles . | . . . Follow-up Attacks . | . . . Damage Inflicted 860 | 52 524 284 Guns 860 | 52 524 284 Cannons . | . . . Explosions . | . . . Melee . | . . . Ramming . | . . . Kinetic 551 | 28 347 176 Thermal 206 | . 98 108 Explosive . | . . . Electromagnetic 103 | 24 79 . Impact . | . . . Slashing . | . . . Piercing . | . . . Highest Corruption . | . . . Average Corruption . | . . . Corruption Purged . | . . . Corruption Blocked . | . . . Overload Shots . | . . . Overflow Damage . | . . . Projectiles . | . . . Explosions . | . . . Melee . | . . . Knockbacks . | . . . Impact . | . . . Kinetic . | . . . Secondary . | . . . Self-Inflicted Damage . | . . . Shots . | . . . Rammed . | . . . Targets Rammed . | . . . Kicked . | . . . Crushed . | . . . Highest Temperature 20 | 6 5 20 Average Temperature 5 | 6 4 6 Received Heat Transfer 600 | 6 261 333 Siege Activations . | . . . Robots Corrupted . | . . . Combat Hostiles . | . . . Parts Fried . | . . . Impact Corruptions . | . . . Robots Melted . | . . . Combat Hostiles . | . . . Parts Melted 1 | . 1 . Heat Transferred 572 | . 225 347 Parts Sabotaged . | . . . Parts Stolen . | . . . Parts Stripped . | . . . Power Chain Reactions . | . . . Alert | -11 -10 -9 ------- Run | Yrd Mat Mat Peak Influence 123 | 20 123 55 Initial 13 | . 13 . Average 39 | 4 51 12 Maximum Alert Level . | . . . Low Security (%) 100 | 100 100 100 Level 1 . | . . . Level 2 . | . . . Level 3 . | . . . Level 4 . | . . . Level 5 . | . . . High Security . | . . . Max Security . | . . . Squads Dispatched 2 | . 2 . Investigation 1 | . 1 . Extermination . | . . . Reinforcement 1 | . 1 . Assault . | . . . Garrison . | . . . Intercept . | . . . Searches Triggered . | . . . Construction Impeded . | . . . Haulers Reinforced . | . . . Active Scanning Responses . | . . . Cargo Convoy Interrupts . | . . . Stealth | -11 -10 -9 --------- Run | Yrd Mat Mat Distress Signals 2 | . . 2 Communications Jammed . | . . . Distress Signals . | . . . Times Spotted 22 | 1 12 9 Peak Tracking Total 5 | 1 3 5 Tactical Retreats 1 | . . 1 Traps | -11 -10 -9 ------- Run | Yrd Mat Mat Traps Triggered 1 | . 1 . Indirectly . | . . . Trap Hack Attempts . | . . . Triggered . | . . . Disarmed . | . . . Reprogrammed . | . . . Reused . | . . . Traps Extracted . | . . . Installed . | . . . Triggered . | . . . Machines | -11 -10 -9 ---------- Run | Yrd Mat Mat Machines Disabled 1 | . 1 . Max in Single Turn 1 | . 1 . Machines Repaired . | . . . Machines Dismantled . | . . . Machines Sabotaged . | . . . Overloaded Fab Kills . | . . . Hacking | -11 -10 -9 --------- Run | Yrd Mat Mat Machines Accessed . | . . . Terminals . | . . . Fabricators . | . . . Repair Stations . | . . . Recycling Units . | . . . Scanalyzers . | . . . Garrison Access . | . . . Total Hacks . | . . . Successful . | . . . Failed . | . . . Catastrophic . | . . . Database Lockouts . | . . . Manual . | . . . Terminals . | . . . Fabricators . | . . . Repair Stations . | . . . Recycling Units . | . . . Scanalyzers . | . . . Garrison Access . | . . . Terminal Hacks . | . . . Fabricator Hacks . | . . . Repair Station Hacks . | . . . Recycling Unit Hacks . | . . . Scanalyzer . | . . . Garrison Access Hacks . | . . . Unauthorized Hacks . | . . . Terminals . | . . . Fabricators . | . . . Repair Stations . | . . . Recycling Units . | . . . Scanalyzers . | . . . Garrison Access . | . . . Data Cores Recovered . | . . . Used . | . . . Hacking Detections . | . . . Full Trace Events . | . . . Feedback Events . | . . . Feedback Blocked . | . . . Robot Schematics Acquired . | . . . Robots Built . | . . . Authchips . | . . . Time . | . . . Total Robot Build Rating . | . . . Part Schematics Acquired . | . . . Parts Built . | . . . Authchips . | . . . Time . | . . . Total Part Build Rating . | . . . Parts Repaired . | . . . Time . | . . . Parts Recycled . | . . . Recycled Matter . | . . . Retrieved Matter . | . . . Retrieved Components . | . . . Parts Scanalyzed . | . . . Part Schematics Acquired . | . . . Parts Damaged . | . . . Bothacking | -11 -10 -9 ------------ Run | Yrd Mat Mat Used RIF Installer . | . . . Robots Hacked 1 | . . 1 Non-combat . | . . . Combat 1 | . . 1 Robot Hacks Applied 2 | . . 2 parse_system 2 | . . 2 Relay Couplers Released . | . . . Fabnet Peak Effective % . | . . . Robots Rewired . | . . . Allies Hacked . | . . . Hacks Repelled . | . . . Allies | -11 -10 -9 -------- Run | Yrd Mat Mat Total Allies . | . . . Largest Group . | . . . Highest-Rated Group . | . . . Highest-Rated Ally . | . . . Total Orders . | . . . Ally Attacks . | . . . Total Damage . | . . . Kills . | . . . Allies Corrupted . | . . . Allies Melted . | . . . Intel | -11 -10 -9 ------- Run | Yrd Mat Mat Robot Analysis Total . | . . . Derelict Logs Recovered . | . . . Drone Launches . | . . . Drone Recoveries . | . . . Exploration | -11 -10 -9 ------------- Run | Yrd Mat Mat Turns Passed 1132 | 112 801 219 Spaces Moved 396 | 85 262 49 Core 24 | 22 . 2 Treads . | . . . Legs 367 | 63 262 42 Wheels 5 | . . 5 Hover . | . . . Flight . | . . . Fastest Speed 50 | 50 120 95 Average Speed 223 | 101 255 261 Slowest Speed 700 | 120 260 700 Overloaded Moves . | . . . Propulsion Burnouts . | . . . Robots Hopped . | . . . Cave-ins Triggered . | . . . Exploration Rate (%) 18 | 6 44 5 Regions Visited 2 Branch Regions . Pre-discovered Areas . | . . . Known Exits Taken . | . . . Unknown Exits Taken 2 | 1 1 . Scrap Searched . | . . . Spaces Dug . | . . . Terrain Destroyed . | . . . Melee . | . . . Projectile . | . . . AOE . | . . . Terrain Rammed . | . . . Walls Destroyed . | . . . Machines Disabled . | . . . Actions | -11 -10 -9 --------- Run | Yrd Mat Mat Total 530 | 104 330 96 Wait 9 | 1 7 1 Move 394 | 84 261 49 Hop . | . . . Pick Up 30 | 10 18 2 Fast Attach . | . . . Attach 23 | 6 3 14 Detach . | . . . Swap 3 | . 2 1 Drop . | . . . Fire 68 | 3 39 26 Melee 3 | . . 3 Ram . | . . . Kick . | . . . Crush . | . . . Escape Stasis . | . . . Rewire . | . . . Trap . | . . . Miscellaneous . | . . . Route ------- -11/Scrapyard -10/Materials (discovered 2 exits: [*Mat] / [*Min]) -9/Materials History --------- Turn | Location | Event 2 | -11/Scrapyard | Met Revision 17 78 | -11/Scrapyard | Discovered new exit (range 8) 113 | -11/Scrapyard | Entered Materials 317 | -10/Materials | Build established: Mutant 322 | -10/Materials | Discovered new exit (range 16) 843 | -10/Materials | Discovered new exit (range 15) 914 | -10/Materials | Entered another Materials area 914 | -9/Materials | Evolved 2 slots: Power x1, Utility x1 1060 | -9/Materials | Lost 3 parts (1p1n1u) 1124 | -9/Materials | Core integrity fell below 50% 1129 | -9/Materials | Core integrity fell below 20% 1133 | -9/Materials | Destroyed by G-47 Trooper with Particle Gun Last Messages --------------- Assault Rifle destroyed. Datajack severed. Ion Engine severed. Acquired Ion Engine. Wheel severed. Jacked L-31 Rogue... >>parse_system Reading system data... Only a single melee weapon may be active at a time, Datajack automatically deactivated. (Secondary inactive melee weapons have a chance to conduct follow-up attacks, see the manual.) Ion Engine destroyed. Jacked L-31 Rogue... >>parse_system Reading system data... Wheel destroyed. Datajack destroyed. Visual Processing Unit severed. Map ----- +----------------------------------------------------+ | ????????????????????????????????????? | | ????????????????????????????????????? | | ????????????????????????????????????? | | ????????????????????????????????????? | | ????????????????????????????????????? | | ????????????????????????????????????? | | ????????????????????????????????????? | | ????????????????????????????????????? | | ????????????????????????????????????? | | ????????????????????????????????????? | | ????????????????????????????????????? | | ????????????????????????????????????? | | ????????????????????????????????????? | | ????????????????????????????????????? | | ????????????????????????????????????? | | ????????????????????????????????????? | | ????????????????????????????????????? | | ????????????????????????????????????? | | ????????????????????????????????????? | | ????????????????????????????????????? | | ???#?????????????????###########????? | | ???# ???????????????# #????? | | ???# ############### #????? | | ???# **%= # = #????? | | ??## [%!![= # g l #????? | | !%= #g @ #????? | | ### ######### /g #????? | | ??# ?# # # #????? | | ??#**[[/??# """# # #????? | | ??#**[[???# """# ###########????? | | ??####????# """# #??????????? | | ??????????# + #??????????? | | ??????????# """# #??????????? | | ??????????# """#########??????????? | | ??????????# """#??????????????????? | | ??????????# ???????????????????? | | ??????????#######???????????????????? | | ????????????????????????????????????? | | | | | | | | | | | | | | | | | | | | | | | | | +----------------------------------------------------+ Best States ------------- Heat Dissipation 38 Energy Generation 19 Energy Capacity 250 Matter Stores 300 Matter Capacity 300 Sight Range 18 Terrain Scan Density 10 Evasion (%) 55 Item Schematics ----------------- None Robot Schematics ------------------ None Fabricated ------------ Nothing Alien Tech Used ----------------- None Achievements -------------- None Challenges ------------ None Game ------ Seed TargetMinesnifferNullifier Manual? 0 Play Time 00:10:03 Cumulative 0.9 hours Start 2024.03.31 @ 21:34:03 End 2024.04.01 @ 22:38:53 Sessions 2 Manual Loads 0 Difficulty Rogue Special Mode None Game No. 3 Rogue 3 Adventurer 0 Explorer 0 Win Type - Total 0 Types 0/0/0/0/0/0/0/0/0 Lore% 1 Gallery% 4 Achievement% 4 Wizard Run 0 Options --------- Layout 1 ASCII 0 Keyboard 0 Movement Numpad Keybinds 0 Fullscreen 1 Font 32/SmallcapsGlow Map View 50x35 Zoom Use 0% Tactical HUD 0 Map Filters NONE Filters NONE Steam 1 RUN: d0b1cdd8-ed2d-4de7-89c0-3a5257048bfa